Workbook

Sheet Лист1
A1: Школа | C1: МБОУ "Юлдузская СОШ" | F1: Утвердил: | G1: должность | H1: Директор
A2: Типовое примерное меню приготавливаемых блюд | G2: фамилия | H2: Шарифуллина Энджекай Юнусовна
A3: Возрастная категория | E3: 7-11 лет | G3: дата | H3: 9 | I3: 1 | J3: 2024
H4: день | I4: месяц | J4: год
A5: Неделя | B5: День недели | C5: Прием пищи | D5: Раздел меню | E5: Блюда | F5: Вес блюда, г | G5: Белки | H5: Жиры | I5: Углеводы | J5: Калорийность | K5: № рецептуры | L5: Цена
A6: 1 | B6: 1 | C6: Завтрак | D6: гор.блюдо | E6: Каша гречневая рассыпчатая с маслом | F6: 150 | G6: 7.11 | H6: 3.36 | I6: 35.12 | J6: 171.5 | K6: 379
D7: гор.блюдо | E7: Мясо тушеное | F7: 100 | G7: 10.5 | H7: 11.03 | I7: 3.184 | J7: 196 | K7: 256
D8: хлеб | E8: Хлеб дарницкий | F8: 20 | G8: 1.3 | H8: 0.2 | I8: 7 | J8: 35 | K8: 376
D9: хлеб | E9: Хлеб пшеничный | F9: 30 | G9: 2.8 | H9: 0.24 | I9: 14.76 | J9: 71 | K9: 376
D10: гор.напиток | E10: Чай с сахаром | F10: 200 | G10: 0.53 | H10: 0 | I10: 9.47 | J10: 40 | K10: 379
D11: фрукты | E11: Плоды и ягоды свежие | F11: 100 | G11: 0.6 | H11: 0.6 | I11: 14.7 | J11: 70.3 | K11: 388
L12: 66.76
D13: итого
A14: =A6 -> 1 | B14: =B6 -> 1 | C14: Обед | D14: закуска
D15: 1 блюдо
D16: 2 блюдо
D17: гарнир
D18: напиток
D19: хлеб бел.
D20: хлеб черн.
D23: итого
A24: =A6 -> 1 | B24: =B6 -> 1 | C24: Итого за день: | F24: =SUM(F6:F11) -> 600 | G24: =SUM(G6:G11) -> 22.84 | H24: 15.43 | I24: 84.234 | J24: 583.8 | L24: =SUM(L6:L12) -> 66.76
A25: 1 | B25: 2 | C25: Завтрак | D25: гор.блюдо | E25: Запеканка картофельная с мясом | F25: 250 | G25: 12.6 | H25: 13 | I25: 9.2 | J25: 204 | K25: 284
D26: хлеб | E26: Хлеб дарницкий | F26: 20 | G26: 1.3 | H26: 0.2 | I26: 7 | J26: 35 | K26: 376
D27: хлеб | E27: Хлеб пшеничный | F27: 30 | G27: 2.8 | H27: 0.24 | I27: 14.76 | J27: 71 | K27: 376
D28: гор.напиток | E28: Какао с молоком | F28: 200 | G28: 4.08 | H28: 3.54 | I28: 17.58 | J28: 118.6 | K28: 382
D29: закуска | E29: Салат из свеклы отварной | F29: 60 | G29: 0.86 | H29: 3.65 | I29: 5.02 | J29: 56.34 | K29: 52
L30: 66.76
D32: итого
A33: =A25 -> 1 | B33: =B25 -> 2 | C33: Обед | D33: закуска
D34: 1 блюдо
D35: 2 блюдо
D36: гарнир
D37: напиток
D38: хлеб бел.
D39: хлеб черн.
D42: итого
A43: =A25 -> 1 | B43: =B25 -> 2 | C43: Итого за день: | F43: =SUM(F25:F31) -> 560 | G43: =SUM(G25:G31) -> 21.64 | H43: 20.63 | I43: 53.56 | J43: 484.94 | L43: 66.76
A44: 1 | B44: 3 | C44: Завтрак | D44: гор.блюдо | E44: Котлеты из говядины | F44: 100 | G44: 10.375 | H44: 12.375 | I44: 12.762 | J44: 188.75 | K44: 268
D45: гор.блюдо | E45: Макаронные изделия отварные | F45: 150 | G45: 5.46 | H45: 5.79 | I45: 30.45 | J45: 195.7 | K45: 202
D46: хлеб | E46: Хлеб дарницкий | F46: 20 | G46: 1.3 | H46: 0.2 | I46: 7 | J46: 35 | K46: 376
D47: хлеб | E47: Хлеб пшеничный | F47: 30 | G47: 2.8 | H47: 0.24 | I47: 14.76 | J47: 71 | K47: 376
D48: гор.напиток | E48: Чай с лимоном | F48: 200 | G48: 0.13 | H48: 0.02 | I48: 15.2 | J48: 62 | K48: 377
D49: фрукты | E49: Плоды и ягоды свежие | F49: 100 | G49: 0.6 | H49: 0.6 | I49: 14.7 | J49: 70.3 | K49: 388
L50: 66.76
D51: итого
A52: =A44 -> 1 | B52: =B44 -> 3 | C52: Обед | D52: закуска
D53: 1 блюдо
D54: 2 блюдо
D55: гарнир
D56: напиток
D57: хлеб бел.
D58: хлеб черн.
D61: итого
A62: =A44 -> 1 | B62: =B44 -> 3 | C62: Итого за день: | F62: =SUM(F44:F50) -> 600 | G62: =SUM(G44:G50) -> 20.665 | H62: 19.225 | I62: 94.872 | J62: 622.75 | L62: 66.76
A63: 1 | B63: 4 | C63: Завтрак | D63: гор.блюдо | E63: Пюре картофельное | F63: 150 | G63: 3.26 | H63: 9.62 | I63: 18.89 | J63: 181.5 | K63: 128
D64: гор.блюдо | E64: Котлеты рыбные | F64: 100 | G64: 8.062 | H64: 5.3 | I64: 9.362 | J64: 145 | K64: 234
D65: хлеб | E65: Хлеб дарницкий | F65: 20 | G65: 1.3 | H65: 0.2 | I65: 7 | J65: 35 | K65: 376
D66: хлеб | E66: Хлеб пшеничный | F66: 30 | G66: 2.8 | H66: 0.24 | I66: 14.76 | J66: 71 | K66: 376
D67: гор.напиток | E67: Чай с сахаром | F67: 200 | G67: 0.53 | H67: 0 | I67: 9.47 | J67: 40 | K67: 379
D68: закуска | E68: Салат из свеклы отварной | F68: 60 | G68: 0.86 | H68: 3.65 | J68: 56.34 | K68: 52
L69: 66.76
D70: итого
A71: =A63 -> 1 | B71: =B63 -> 4 | C71: Обед | D71: закуска
D72: 1 блюдо
D73: 2 блюдо
D74: гарнир
D75: напиток
D76: хлеб бел.
D77: хлеб черн.
D80: итого
A81: =A63 -> 1 | B81: =B63 -> 4 | C81: Итого за день: | F81: =SUM(F63:F68) -> 560 | G81: =SUM(G63:G68) -> 16.812 | H81: 19.01 | I81: 59.482 | J81: 528.84 | L81: =SUM(L63:L69) -> 66.76
A82: 1 | B82: 5 | C82: Завтрак | D82: гор.блюдо | E82: Рис отварной | F82: 150 | G82: 3.65 | H82: 5.37 | I82: 36.68 | J82: 209.7 | K82: 304
D83: гор.блюдо | E83: Птица тушеная в соусе | F83: 100 | G83: 11.65 | H83: 10.756 | I83: 11.632 | J83: 164 | K83: 290
D84: хлеб | E84: Хлеб дарницкий | F84: 20 | G84: 1.3 | H84: 0.2 | I84: 7 | J84: 35 | K84: 376
D85: хлеб | E85: Хлеб пшеничный | F85: 30 | G85: 2.8 | H85: 0.24 | I85: 14.76 | J85: 71 | K85: 376
D86: гор.напиток | E86: Кофейный напиток | F86: 200 | G86: 3.17 | H86: 2.68 | I86: 15.9 | J86: 100.6 | K86: 379
D87: фрукты | E87: Плоды и ягоды свежие | F87: 100 | G87: 0.6 | H87: 0.6 | I87: 14.7 | J87: 70.3 | K87: 388
L88: 66.76
D89: итого
A90: =A82 -> 1 | B90: =B82 -> 5 | C90: Обед | D90: закуска
D91: 1 блюдо
D92: 2 блюдо
D93: гарнир
D94: напиток
D95: хлеб бел.
D96: хлеб черн.
D99: итого
A100: =A82 -> 1 | B100: =B82 -> 5 | C100: Итого за день: | F100: =SUM(F82:F88) -> 600 | G100: =SUM(G82:G88) -> 23.17 | H100: 19.846 | I100: 100.672 | J100: 650.6 | L100: 66.76
A101: 2 | B101: 1 | C101: Завтрак | D101: гор.блюдо | E101: Котлеты из говядины | F101: 100 | G101: 10.375 | H101: 12.375 | I101: 12.762 | J101: 188.75 | K101: 268
D102: гор.блюдо | E102: Макаронные изделия отварные | F102: 150 | G102: 5.46 | H102: 5.79 | I102: 30.45 | J102: 195.7 | K102: 202
D103: хлеб | E103: Хлеб дарницкий | F103: 20 | G103: 1.3 | H103: 0.2 | I103: 7 | J103: 35 | K103: 376
D104: хлеб | E104: Хлеб пшеничный | F104: 30 | G104: 2.8 | H104: 0.24 | I104: 14.76 | J104: 71 | K104: 376
D105: гор.напиток | E105: Чай с сахаром | F105: 200 | G105: 0.53 | H105: 0 | I105: 9.47 | J105: 40 | K105: 379
D106: фрукты | E106: Плоды и ягоды свежие | F106: 100 | G106: 0.6 | H106: 0.6 | I106: 14.7 | J106: 70.3 | K106: 388
L107: 66.76
D108: итого
A109: =A101 -> 2 | B109: =B101 -> 1 | C109: Обед | D109: закуска
D110: 1 блюдо
D111: 2 блюдо
D112: гарнир
D113: напиток
D114: хлеб бел.
D115: хлеб черн.
D118: итого
A119: =A101 -> 2 | B119: =B101 -> 1 | C119: Итого за день: | F119: =SUM(F101:F106) -> 600 | G119: =SUM(G101:G106) -> 21.065 | H119: 19.205 | I119: 89.142 | J119: 600.75 | L119: =SUM(L101:L107) -> 66.76
A120: 2 | B120: 2 | C120: Завтрак | D120: гор.блюдо | E120: Рагу овощное из говядины | F120: 200 | G120: 18.7 | H120: 22.8 | I120: 18.8 | J120: 355
D121: хлеб | E121: Хлеб дарницкий | F121: 20 | G121: 1.3 | H121: 0.2 | I121: 7 | J121: 35 | K121: 376
D122: хлеб | E122: Хлеб пшеничный | F122: 30 | G122: 2.8 | H122: 0.24 | I122: 14.76 | J122: 71 | K122: 376
D123: гор.напиток | E123: Какао с молоком | F123: 200 | G123: 4.08 | H123: 3.54 | I123: 17.58 | J123: 118.6 | K123: 382
D124: закуска | E124: Салат из свеклы отварной | F124: 60 | G124: 0.86 | H124: 3.65 | J124: 56.34 | K124: 52
L125: 66.76
D127: итого
A128: =A120 -> 2 | B128: =B120 -> 2 | C128: Обед | D128: закуска
D129: 1 блюдо
D130: 2 блюдо
D131: гарнир
D132: напиток
D133: хлеб бел.
D134: хлеб черн.
D137: итого
A138: =A120 -> 2 | B138: =B120 -> 2 | C138: Итого за день: | F138: =SUM(F120:F126) -> 510 | G138: =SUM(G120:G126) -> 27.74 | H138: 30.43 | I138: 58.14 | J138: 635.94 | L138: 66.76
A139: 2 | B139: 3 | C139: Завтрак | D139: гор.блюдо | E139: Пюре картофельное | F139: 150 | G139: 3.26 | H139: 9.62 | I139: 18.89 | J139: 181.5 | K139: 128
D140: гор.блюдо | E140: Котлеты рыбные | F140: 100 | G140: 8.062 | H140: 5.3 | I140: 9.362 | J140: 145 | K140: 234
D141: хлеб | E141: Хлеб дарницкий | F141: 20 | G141: 1.3 | H141: 0.2 | I141: 7 | J141: 35 | K141: 376
D142: хлеб | E142: Хлеб пшеничный | F142: 30 | G142: 2.8 | H142: 0.24 | I142: 14.76 | J142: 71 | K142: 376
D143: гор.напиток | E143: Чай с лимоном | F143: 200 | G143: 0.13 | H143: 0.02 | I143: 15.2 | J143: 62 | K143: 377
D144: фрукты | E144: Плоды и ягоды свежие | F144: 100 | G144: 0.6 | H144: 0.6 | I144: 14.7 | J144: 70.3 | K144: 388
L145: 66.76
D146: итого
A147: =A139 -> 2 | B147: =B139 -> 3 | C147: Обед | D147: закуска
D148: 1 блюдо
D149: 2 блюдо
D150: гарнир
D151: напиток
D152: хлеб бел.
D153: хлеб черн.
D156: итого
A157: =A139 -> 2 | B157: =B139 -> 3 | C157: Итого за день: | F157: =SUM(F139:F145) -> 600 | G157: =SUM(G139:G145) -> 16.152 | H157: 15.98 | I157: 79.912 | J157: 564.8 | L157: 66.76
A158: 2 | B158: 4 | C158: Завтрак | D158: гор.блюдо | E158: Фрикадельки в соусе | F158: 70/50 | G158: 10.6 | H158: 9.85 | I158: 4.065 | J158: 223 | K158: 105
D159: гор.блюдо | E159: Макаронные изделия отварные | F159: 155 | G159: 5.46 | H159: 5.79 | I159: 30.45 | J159: 195.7 | K159: 202
D160: хлеб | E160: Хлеб дарницкий | F160: 20 | G160: 1.3 | H160: 0.2 | I160: 7 | J160: 35 | K160: 376
D161: хлеб | E161: Хлеб пшеничный | F161: 30 | G161: 2.8 | H161: 0.24 | I161: 14.76 | J161: 71 | K161: 376
D162: гор.напиток | E162: Кофейный напиток | F162: 200 | G162: 3.17 | H162: 2.68 | I162: 15.9 | J162: 100.6 | K162: 379
D163: фрукты | E163: Плоды и ягоды свежие | F163: 100 | G163: 0.6 | H163: 0.6 | I163: 14.7 | J163: 70.3 | K163: 388
D164: закуска | E164: Салат из свеклы отварной | F164: 60 | G164: 0.86 | H164: 3.65 | I164: 5.02 | J164: 56.34 | K164: 52
L165: 66.76
D166: итого
A167: =A158 -> 2 | B167: =B158 -> 4 | C167: Обед | D167: закуска
D168: 1 блюдо
D169: 2 блюдо
D170: гарнир
D171: напиток
D172: хлеб бел.
D173: хлеб черн.
D176: итого
A177: =A158 -> 2 | B177: =B158 -> 4 | C177: Итого за день: | F177: =SUM(F159:F164) -> 565 | G177: =SUM(G159:G164) -> 14.19 | H177: 13.16 | I177: 87.83 | J177: 528.94 | L177: =SUM(L165) -> 66.76
A178: 2 | B178: 5 | C178: Завтрак | D178: гор.блюдо | E178: Рис отварной | F178: 150 | G178: 3.65 | H178: 5.37 | I178: 36.68 | J178: 209.7 | K178: 304
D179: гор.блюдо | E179: Котлеты из птицы | F179: 100 | G179: 12.8 | H179: 6.712 | I179: 24.4 | J179: 199 | K179: 295
D180: хлеб | E180: Хлеб дарницкий | F180: 20 | G180: 1.3 | H180: 0.2 | I180: 7 | J180: 35 | K180: 376
D181: хлеб | E181: Хлеб пшеничный | F181: 30 | G181: 2.8 | H181: 0.24 | I181: 14.76 | J181: 71 | K181: 376
D182: гор.напиток | E182: Какао с молоком | F182: 200 | G182: 4.08 | H182: 3.54 | I182: 17.58 | J182: 118.6 | K182: 382
D183: фрукты | E183: Плоды и ягоды свежие | F183: 100 | G183: 0.6 | H183: 0.6 | I183: 14.7 | J183: 70.3 | K183: 388
L184: 66.76
D185: итого
A186: =A178 -> 2 | B186: =B178 -> 5 | C186: Обед | D186: закуска
D187: 1 блюдо
D188: 2 блюдо
D189: гарнир
D190: напиток
D191: хлеб бел.
D192: хлеб черн.
D195: итого | F195: =SUM(F186:F194) -> 0 | G195: =SUM(G186:G194) -> 0 | H195: 0 | I195: 0 | J195: 0 | L195: =SUM(L186:L194) -> 0
A196: =A178 -> 2 | B196: =B178 -> 5 | C196: Итого за день: | F196: =SUM(F178:F184) -> 600 | G196: =SUM(G178:G184) -> 25.23 | H196: 16.662 | I196: 115.12 | J196: 703.6 | L196: 66.76
C197: Среднее значение за период: | F197: =(F24+F43+F62+F81+F100+F119+F138+F157+F177+F196)/(IF(F24=0,0,1)+IF(F43=0,0,1)+IF(F62=0,0,1)+IF(F81=0,0,1)+IF(F100=0,0,1)+IF(F119=0,0,1)+IF(F138=0,0,1)+IF(F157=0,0,1)+IF(F177=0,0,1)+IF(F196=0,0,1)) -> 579.5 | G197: 20.9504 | H197: 18.9578 | I197: 82.2964 | J197: 590.496 | L197: =(L24+L43+L62+L81+L100+L119+L138+L157+L177+L196)/(IF(L24=0,0,1)+IF(L43=0,0,1)+IF(L62=0,0,1)+IF(L81=0,0,1)+IF(L100=0,0,1)+IF(L119=0,0,1)+IF(L138=0,0,1)+IF(L157=0,0,1)+IF(L177=0,0,1)+IF(L196=0,0,1)) -> 66.76
